bitfinex/quotes_ETHUSD_20250219
["timestamp","ask_amount","ask_price","bid_price","bid_amount"]
[1739960601757,3.500887,2733.2,2732.7,3.6593]
[1739960601923,3.500887,2733.2,2732.7,3.65928]
[1739960602250,3.500887,2733.2,2732.5,0.7999]
[1739960602251,0.7709537,2733.1,2732.8,0.269]
[1739960602762,4.97376,2733.0,2732.6,0.269]
[1739960603157,3.6592,2732.9,2732.6,0.269]
[1739960603458,4.97376,2733.0,2732.6,0.269]
[1739960603751,0.55,2733.0,2732.7,0.7856]
[1739960603952,4.20899,2733.0,2732.6,0.269]
[1739960604252,0.720899,2732.9,2732.6,0.269]
[1739960604473,4.380079,2732.9,2732.6,0.269]
[1739960604682,6.905499,2732.9,2732.2,0.8316]
[1739960604820,3.0,2732.6,2732.0,0.8316]
[1739960605163,0.720945,2732.5,2732.2,0.269]
[1739960605822,0.19122279,2732.4,2732.2,3.92904]
[1739960606150,0.19122279,2732.4,2732.3,3.65992]
[1739960606356,0.19122279,2732.4,2732.3,4.43972]
[1739960607662,5.38,2732.9,2732.3,3.65992]
[1739960607824,3.65863,2733.3,2732.8,0.7653]
[1739960608023,0.446633,2733.2,2732.8,0.7653]
[1739960608220,0.446633,2733.2,2732.5,3.65956]
[1739960608221,4.20907,2733.0,2732.5,4.44226]
[1739960608458,0.55,2733.0,2732.5,4.44226]
[1739960609255,4.20898,2733.0,2732.5,4.44226]
[1739960609457,0.8072,2732.9,2732.3,4.44265]
[1739960609662,3.65941,2732.7,2732.4,0.269]
[1739960609866,4.080471,2732.6,2732.4,0.269]
[1739960610062,3.420941,2732.6,2732.1,8.227]
[1739960610361,1.3609,2732.5,2732.1,8.227]
[1739960610559,1.3609,2732.5,2732.1,8.497]
[1739960610755,3.65979,2732.4,2732.1,8.497]
[1739960610924,4.8699101,2732.4,2732.1,8.497]
[1739960611129,1.2101201,2732.4,2732.1,8.497]
[1739960613535,3.6598,2732.4,2732.1,8.497]
[1739960613874,0.55,2732.3,2732.1,8.496]
[1739960614372,3.66005,2732.2,2732.1,8.496]
[1739960614545,3.66005,2732.2,2732.1,8.227]
[1739960615163,3.65995,2732.3,2732.1,8.227]
[1739960615473,0.903995,2732.2,2732.1,8.227]
[1739960615675,5.38,2732.4,2732.1,8.227]
[1739960616036,8.38,2732.4,2732.1,8.227]
[1739960616232,8.38,2732.4,2732.1,11.8871]
[1739960616436,8.38,2732.4,2732.1,8.227]
[1739960616673,8.38,2732.4,2732.1,11.88715]
[1739960617963,9.6260461,2732.4,2732.1,8.227]
[1739960618703,13.2859161,2732.4,2732.1,8.227]
[1739960618993,4.437,2732.3,2731.9,0.269]
[1739960619356,3.66007,2732.2,2732.0,0.269]
[1739960619767,3.66018,2732.1,2732.0,0.269]
[1739960620549,1.77229961,2732.2,2732.0,0.269]
[1739960621198,5.43236961,2732.2,2732.0,0.269]
[1739960622111,3.0,2732.0,2731.5,9.1991941]
[1739960622447,3.66045,2731.9,2731.8,0.269]
[1739960622624,6.66065,2731.8,2731.5,8.6459941]
[1739960622753,3.66074,2731.7,2731.5,8.3769941]
[1739960622956,3.66085,2731.6,2731.5,8.6459941]
[1739960623252,4.21085,2731.6,2731.5,8.3769941]
[1739960623569,5.05284069,2731.6,2731.5,8.6459941]
[1739960624091,1.39199069,2731.6,2731.5,8.6459941]
[1739960624292,8.05284069,2731.6,2731.5,8.6459941]
[1739960624700,5.38,2731.7,2731.5,12.3069841]
[1739960624873,5.38,2731.7,2731.5,8.6459941]
[1739960625796,5.38,2731.7,2731.5,8.3769941]
[1739960626103,4.3447,2731.6,2731.5,8.3769941]
[1739960627400,5.38,2731.7,2731.5,12.0379041]
[1739960628092,3.8183,2731.9,2731.5,8.3769941]
[1739960628275,0.91983,2731.8,2731.5,8.6469941]
[1739960628798,0.19120427,2731.7,2731.5,8.6469941]
[1739960629702,0.55,2731.6,2731.5,8.3769941]
[1739960630222,0.19120427,2731.7,2731.5,8.3769941]
[1739960630375,0.41110343,2731.6,2731.5,8.3769941]
[1739960631513,0.19120427,2731.7,2731.5,12.0378941]
[1739960631712,0.19120427,2731.7,2731.6,3.66085]
[1739960632312,0.19120427,2731.7,2731.5,12.0379741]
[1739960632475,0.19120427,2731.7,2731.6,3.66085]
[1739960632871,0.19120427,2731.7,2731.5,8.3769941]
[1739960633286,0.19120427,2731.7,2731.5,3.8099341]
[1739960634114,0.19120427,2731.7,2731.6,3.66085]
[1739960637727,0.19120427,2731.7,2731.6,4.48785]
[1739960639362,0.19120427,2731.7,2731.6,5.31763241]
[1739960640127,6.2079,2732.6,2731.7,0.8148]
[1739960640429,3.0,2732.5,2732.4,3.6597]
[1739960640743,3.19090425,2732.5,2732.4,3.9297]
[1739960642571,0.19090425,2732.5,2732.4,3.9297]
[1739960642943,0.19090425,2732.5,2732.4,4.7181]
[1739960643139,0.19090425,2732.5,2732.4,5.555901]
[1739960645163,0.19090425,2732.5,2732.4,5.7725094]
[1739960645557,0.822,2733.4,2733.0,3.65896]
[1739960645866,0.822,2733.4,2733.0,7.31785]
[1739960646177,0.19086778,2733.3,2733.0,3.65888]
[1739960646345,0.19086778,2733.3,2733.1,3.65873]
[1739960646879,0.19086778,2733.3,2733.2,3.65871]
[1739960647080,0.19086778,2733.3,2733.2,3.92871]
[1739960647441,0.19086778,2733.3,2733.2,4.71351]
[1739960647862,0.19086778,2733.3,2733.2,5.550734]
[1739960650481,0.19086778,2733.3,2733.2,5.280734]
[1739960650760,0.19086778,2733.3,2733.2,3.92871]
[1739960651655,0.19086778,2733.3,2733.2,0.27]
[1739960651985,0.19086778,2733.3,2733.1,3.65883]
[1739960652193,0.7515,2733.2,2732.9,8.229]
[1739960652517,0.7515,2733.2,2732.9,8.499]
[1739960652907,0.46009878,2733.1,2732.9,8.499]
[1739960653389,0.7515,2733.2,2732.9,0.27]
[1739960653710,0.7515,2733.2,2733.0,3.65895]
[1739960653855,0.19086778,2733.3,2733.0,3.65895]
[1739960654294,0.19086778,2733.3,2732.9,7.58805]
[1739960654454,0.19086778,2733.3,2732.9,3.92902]
[1739960654650,0.95164856,2733.3,2732.9,3.92902]
[1739960654866,0.95164856,2733.3,2732.9,0.27]
[1739960655067,4.61030856,2733.3,2732.9,0.27]
[1739960656605,0.95164856,2733.3,2732.9,0.27]
[1739960657069,0.95164856,2733.3,2732.9,3.92911]
[1739960657271,0.47102486,2733.2,2732.9,3.92911]
[1739960657874,0.47102486,2733.2,2733.0,3.65895]
[1739960658122,0.47102486,2733.2,2732.9,3.92911]
[1739960658336,0.47102486,2733.2,2732.9,0.27]
[1739960659281,0.767,2733.1,2732.9,0.27]
[1739960661592,3.6592,2732.9,2732.4,0.1496]
[1739960661797,3.0,2732.8,2732.5,0.27]
[1739960662392,3.0,2732.9,2732.5,0.27]
[1739960662799,3.767,2733.1,2732.6,3.65948]
[1739960663111,3.0,2732.9,2732.5,0.27]
[1739960663294,0.665905,2732.8,2732.6,0.27]
[1739960665092,7.42589,2733.1,2732.6,3.92947]
[1739960665298,3.65912,2732.9,2732.6,0.27]
[1739960665501,3.0,2732.9,2732.6,0.27]
[1739960666318,0.19087978,2732.8,2732.6,0.27]
[1739960667316,3.85018978,2732.8,2732.6,0.27]
[1739960667543,0.68501898,2732.7,2732.6,0.27]
[1739960668721,1.43761898,2732.7,2732.6,0.27]
[1739960669420,0.19087978,2732.8,2732.6,3.92951]
[1739960669728,0.19087978,2732.8,2732.6,0.27]
[1739960671002,0.19087978,2732.8,2732.7,3.65938]
[1739960671214,0.19087978,2732.8,2732.7,0.7824]
[1739960671502,0.19087978,2732.8,2732.7,4.44178]
[1739960672035,0.19087978,2732.8,2732.7,5.278897]
[1739960672737,0.19087978,2732.8,2732.7,4.44178]
[1739960674895,0.19087978,2732.8,2732.7,4.71178]
[1739960676053,0.19087978,2732.8,2732.7,4.92860184]
[1739960677449,0.19087978,2732.8,2732.7,4.71178]
[1739960678814,0.19087978,2732.8,2732.7,3.92938]
[1739960679718,0.19087978,2732.8,2732.6,3.65939]
[1739960679957,0.19087978,2732.8,2732.7,0.269]
[1739960680119,0.19087978,2732.8,2732.5,0.7546]
[1739960680334,0.19087978,2732.8,2732.5,3.65961]
[1739960680557,0.19087978,2732.8,2732.6,0.269]
[1739960680724,0.57587076,2732.8,2732.6,0.269]
[1739960681126,0.7519,2732.7,2732.6,0.269]
[1739960684122,0.7519,2732.7,2732.4,0.4186]
[1739960684568,4.41135,2732.7,2732.4,0.4186]
[1739960685105,3.65955,2732.6,2732.4,0.4186]
[1739960685239,0.7519,2732.7,2732.4,0.4186]
[1739960685429,0.46020298,2732.6,2732.4,0.4186]
[1739960685850,7.11973298,2732.6,2732.4,0.1496]
[1739960687151,7.99745,2732.5,2732.4,0.1496]
[1739960687740,8.91745,2732.5,2732.4,0.1496]
[1739960688155,9.10854969,2732.5,2732.4,0.1496]
[1739960688328,10.87581487,2732.5,2732.4,0.1496]
[1739960695341,11.05701816,2732.5,2732.4,0.1496]
[1739960695943,16.25581487,2732.5,2732.4,0.1496]
[1739960697196,16.72432262,2732.5,2732.4,0.1496]
[1739960698139,16.25581487,2732.5,2732.4,0.1496]
[1739960699692,15.33581487,2732.5,2732.4,0.1496]
[1739960699998,15.80432262,2732.5,2732.4,0.1496]
[1739960700427,15.33581487,2732.5,2732.4,0.1496]
[1739960701230,14.78581487,2732.5,2732.4,0.1496]
[1739960702308,15.33581487,2732.5,2732.4,0.1496]
[1739960702509,8.67616487,2732.5,2732.4,0.1496]
[1739960702709,0.19109969,2732.5,2732.4,0.4176]
[1739960702921,0.19109969,2732.5,2732.4,4.90698]
[1739960706431,0.19109969,2732.5,2732.4,1.2472]
[1739960706827,0.19109969,2732.5,2732.4,0.9792]
[1739960707024,0.19109969,2732.5,2732.4,0.4186]
[1739960708540,0.19109969,2732.5,2732.4,4.562654]
[1739960708716,0.19109969,2732.5,2732.4,0.902874]
[1739960708904,0.19109969,2732.5,2732.4,0.4186]
[1739960709629,0.19109969,2732.5,2732.4,4.07838]
[1739960709826,0.19109969,2732.5,2732.4,4.89828]
[1739960710724,0.19109969,2732.5,2732.4,5.11483707]
[1739960711512,4.46182,2733.6,2733.0,4.41456]
[1739960711733,9.03811,2733.7,2733.2,3.65861]
[1739960711939,0.19101794,2733.5,2733.3,0.269]
[1739960713040,3.0,2733.4,2733.3,0.269]
[1739960713361,0.19101794,2733.5,2733.3,0.269]
[1739960714042,3.0,2733.4,2733.3,0.269]
[1739960714244,3.98493379,2733.4,2733.3,0.269]
[1739960714420,7.64337379,2733.4,2733.3,0.269]
[1739960714738,3.98493379,2733.4,2733.3,0.269]
[1739960716219,3.0,2733.4,2733.3,0.269]
[1739960719710,6.65844,2733.4,2733.3,0.269]
[1739960720438,3.0,2733.4,2733.3,0.269]
[1739960721645,0.19101794,2733.5,2733.4,3.65844]
[1739960721962,3.84939794,2733.5,2733.3,0.269]
[1739960722823,0.19101794,2733.5,2733.3,0.269]
[1739960725028,0.19101794,2733.5,2733.3,3.92756]
[1739960725427,0.19101794,2733.5,2733.3,0.269]
[1739960726140,0.19101794,2733.5,2733.3,3.92755]
[1739960727415,0.19101794,2733.5,2733.3,0.269]
[1739960728314,3.84943794,2733.5,2733.3,0.269]
[1739960728513,4.23438173,2733.5,2733.3,0.269]
[1739960728738,0.57596173,2733.5,2733.3,0.269]
[1739960729270,4.23430173,2733.5,2733.3,0.269]
[1739960729419,0.57596173,2733.5,2733.3,0.269]
[1739960729965,0.57596173,2733.5,2733.0,0.8249]
[1739960730132,0.57596173,2733.5,2733.4,0.267]
[1739960730468,4.23427173,2733.5,2733.4,0.267]
[1739960732159,0.57596173,2733.5,2733.4,0.267]
[1739960734159,0.19101794,2733.5,2733.4,0.267]
[1739960735037,0.19101794,2733.5,2733.4,1.0204]
[1739960737636,0.19101794,2733.5,2733.4,4.67884]
[1739960743344,0.19101794,2733.5,2733.4,4.89553556]
[1739960745550,5.38,2734.3,2733.9,4.41738]
[1739960745878,3.0,2734.3,2733.9,4.41738]
[1739960746081,0.191023,2734.2,2733.9,4.41738]
[1739960747967,0.191023,2734.2,2733.9,0.7597]
[1739960748264,0.191023,2734.2,2733.4,5.627]
[1739960748265,3.65754,2734.1,2734.0,0.267]
[1739960748457,4.45164,2734.1,2734.0,0.267]
[1739960749333,5.2816433,2734.1,2734.0,0.267]
[1739960749969,0.7941,2734.1,2734.0,0.267]
[1739960750645,0.191023,2734.2,2734.0,0.267]
[1739960751470,0.191023,2734.2,2734.0,3.92463]
[1739960752444,0.191023,2734.2,2734.1,3.65751]
[1739960754552,0.7573,2734.8,2734.4,3.657]
[1739960754757,0.19093332,2734.5,2734.4,3.657]
[1739960754958,0.19093332,2734.5,2734.4,4.4689]
[1739960755277,0.19093332,2734.5,2734.4,5.32173973]
[1739960755573,0.19093332,2734.5,2734.4,5.28516998]
[1739960757344,4.44813,2735.3,2734.4,1.62816998]
[1739960757545,4.44813,2735.3,2734.7,3.65661]
[1739960757745,4.44813,2735.3,2734.8,0.267]
[1739960758045,0.1909215,2735.2,2734.8,0.267]
[1739960759440,0.1909215,2735.2,2734.8,3.92356]
[1739960759639,0.1909215,2735.2,2734.9,4.41523]
[1739960759845,0.1909215,2735.2,2735.0,3.65629]
[1739960760042,0.1909215,2735.2,2734.9,4.41523]
[1739960760285,0.1909215,2735.2,2734.9,4.41516]
[1739960760777,0.1909215,2735.2,2734.9,8.07152]
[1739960760941,0.1909215,2735.2,2734.9,5.3248137]
[1739960761483,0.1909215,2735.2,2735.0,3.65625]
[1739960761862,0.1909215,2735.2,2734.9,5.3247937]
[1739960762392,0.1909215,2735.2,2735.0,3.65629]
[1739960763090,0.1909215,2735.2,2734.9,5.3247937]
[1739960763295,0.1909215,2735.2,2735.0,0.55917937]
[1739960763668,0.1909215,2735.2,2735.0,4.21539937]
[1739960764070,0.1909215,2735.2,2735.1,3.65617]
[1739960764471,0.1909215,2735.2,2735.1,4.41027]
[1739960766068,0.5,2735.6,2735.4,3.65573]
[1739960766395,0.69091089,2735.6,2735.5,0.365573]
[1739960767791,0.69091089,2735.6,2735.2,3.65595]
[1739960767998,0.69091089,2735.6,2735.5,0.267]
[1739960769411,5.17461089,2735.6,2735.5,0.267]
[1739960769611,3.65596,2735.3,2735.0,8.221]
[1739960769822,3.65569,2735.5,2735.1,0.267]
[1739960769992,3.65578,2735.4,2735.1,0.267]
[1739960770578,3.65565,2735.5,2735.1,0.267]
[1739960771302,1.51911089,2735.6,2735.1,0.267]
[1739960771303,3.65577,2735.4,2735.1,0.267]
[1739960771697,0.7944,2735.3,2735.1,0.267]
[1739960772012,0.7944,2735.3,2735.0,8.221]
[1739960772013,3.65603,2735.2,2735.0,8.488]
[1739960772215,3.65603,2735.2,2735.0,8.221]
[1739960772216,4.47017,2735.1,2735.0,8.221]
[1739960772414,7.47017,2735.1,2735.0,8.221]
[1739960773425,8.39017,2735.1,2735.0,8.221]
[1739960774731,4.40771,2734.7,2734.5,0.267]
[1739960775034,0.751,2734.7,2734.5,0.267]
[1739960776631,0.8117,2735.0,2734.5,1.0796]
[1739960776925,3.0,2735.0,2734.6,3.6568]
[1739960777222,3.0,2735.0,2734.5,1.0796]
[1739960777384,3.0,2735.0,2734.5,4.73646]
[1739960777581,3.0,2735.0,2734.6,3.65682]
[1739960777897,3.65644,2734.9,2734.5,1.0796]
[1739960778416,3.65644,2734.9,2734.5,0.267]
[1739960778621,4.41164,2734.8,2734.5,0.267]
[1739960778822,0.755,2734.8,2734.5,0.267]
[1739960779237,4.6382923,2735.0,2734.5,0.267]
[1739960779419,4.48598523,2734.9,2734.5,0.267]
[1739960779620,8.14254523,2734.9,2734.5,0.267]
[1739960779990,8.14251523,2734.9,2734.5,0.267]
[1739960780751,3.65668,2734.8,2734.5,0.267]
[1739960780942,8.14249523,2734.9,2734.5,0.267]
[1739960781138,8.14247523,2734.9,2734.5,0.267]
[1739960781334,3.65672,2734.7,2734.5,0.267]
[1739960781661,4.41234,2734.6,2734.5,0.267]
[1739960781850,0.7555,2734.6,2734.5,0.267]
[1739960782858,3.65644,2734.9,2734.5,0.267]
[1739960783056,4.098564,2734.9,2734.5,0.267]
[1739960783954,3.65661,2734.8,2734.5,0.267]
[1739960784757,3.65679,2734.7,2734.5,0.267]
[1739960785321,0.442124,2734.9,2734.5,0.267]
[1739960785533,4.098564,2734.9,2734.5,0.267]
[1739960785745,0.8519754,2734.8,2734.5,0.267]
[1739960786140,4.5085654,2734.8,2734.5,0.267]
[1739960786663,0.19081099,2734.7,2734.5,0.267]
[1739960786859,0.7864,2734.6,2734.5,0.267]
[1739960787063,4.44324,2734.6,2734.5,0.267]
[1739960787221,5.35750164,2734.6,2734.5,0.267]
[1739960788059,5.35750164,2734.6,2734.0,0.7936]
[1739960788256,5.35750164,2734.6,2734.3,0.267]
[1739960788568,3.6571,2734.4,2734.3,0.267]
[1739960788955,1.70066164,2734.6,2734.3,0.267]
[1739960789284,4.44324,2734.6,2734.3,0.267]
[1739960789482,6.84753099,2734.7,2734.3,0.267]
[1739960790273,3.65685,2734.6,2734.3,0.267]
[1739960793062,3.6571,2734.4,2734.3,0.267]
[1739960793257,3.65699,2734.5,2734.3,0.267]
[1739960793498,5.191694,2734.4,2734.2,0.267]
[1739960794294,3.65731,2734.3,2733.8,11.8778]
[1739960794793,8.11753,2734.4,2733.9,0.267]
[1739960794998,3.65747,2734.2,2733.8,8.22]
[1739960795183,3.65747,2734.2,2734.0,0.267]
[1739960795390,4.103527,2734.2,2734.0,0.267]
[1739960795900,0.446057,2734.2,2733.8,8.22]
[1739960796084,3.65776,2734.0,2733.8,8.22]
[1739960796393,8.11856,2734.0,2733.8,8.22]
[1739960796600,4.46082,2734.0,2733.8,8.22]
[1739960797604,3.65777,2733.9,2733.8,8.22]
[1739960797802,4.46075,2734.0,2733.8,8.22]
[1739960798274,3.65777,2733.9,2733.8,8.22]
[1739960798676,3.65777,2733.9,2733.6,0.267]
[1739960800400,0.8031,2734.0,2733.6,0.267]
[1739960800619,4.46081,2734.0,2733.6,0.267]
[1739960800909,8.11857,2734.0,2733.6,0.267]
[1739960801110,3.6578,2733.9,2733.6,0.267]
[1739960801421,3.65794,2733.8,2733.6,0.267]
[1739960802109,4.46081,2734.0,2733.6,0.267]
[1739960802314,8.564651,2734.0,2733.6,0.267]
[1739960803025,4.906891,2734.0,2733.6,0.267]
[1739960803646,8.564611,2734.0,2733.6,0.267]
[1739960804124,4.906891,2734.0,2733.6,0.267]
[1739960805040,3.65795,2733.8,2733.6,0.267]
[1739960805394,3.65784,2733.9,2733.6,0.267]
[1739960805819,4.5143001,2733.9,2733.6,0.267]
[1739960806220,8.1721801,2733.9,2733.6,0.267]
[1739960806623,4.5143001,2733.9,2733.6,0.217]
[1739960806901,0.19084143,2733.8,2733.6,0.217]
[1739960808930,0.19084143,2733.8,2733.6,0.167]
[1739960809239,4.76541458,2733.8,2733.6,0.167]
[1739960809401,1.10744458,2733.8,2733.6,0.167]
[1739960809599,0.19084143,2733.8,2733.6,0.167]
[1739960810133,0.19084143,2733.8,2733.6,3.82517]
[1739960810297,0.19084143,2733.8,2733.6,0.167]
[1739960812573,0.19084143,2733.8,2733.6,3.82515]
[1739960813339,0.19084143,2733.8,2733.7,0.8252]
[1739960819609,0.19084143,2733.8,2733.7,4.48324]
[1739960820112,0.19084143,2733.8,2733.7,0.8252]
[1739960820629,0.19084143,2733.8,2733.7,4.48324]
[1739960821990,0.19084143,2733.8,2733.7,4.98484324]
[1739960822307,0.7935,2734.5,2734.0,3.65759]
[1739960822510,0.19090111,2734.2,2734.0,3.65759]
[1739960822808,0.19090111,2734.2,2734.1,4.48751]
[1739960823491,0.19090111,2734.2,2734.1,0.83]
[1739960823833,0.19090111,2734.2,2733.7,0.7886]
[1739960824130,0.19090111,2734.2,2733.6,0.167]
[1739960824131,3.65759,2734.1,2733.6,0.167]
[1739960824419,0.7963,2734.0,2733.7,3.65797]
[1739960824619,1.02106022,2734.2,2733.7,3.65797]
[1739960824825,4.67851022,2734.2,2733.6,3.82511]
[1739960825030,3.65751,2734.1,2733.6,3.82511]
[1739960825210,4.56811902,2734.1,2733.6,3.82511]
[1739960825665,0.91060902,2734.1,2733.6,3.82511]
[1739960825825,0.91060902,2734.1,2733.6,0.167]
[1739960826165,3.65824,2733.6,2733.1,3.65877]
[1739960826337,4.45894,2733.6,2733.1,3.65877]
[1739960826509,0.8007,2733.6,2733.1,0.267]
[1739960826713,0.8232,2733.9,2733.4,3.65837]
[1739960826946,0.8232,2734.1,2733.6,3.65816]
[1739960827171,0.46715211,2734.0,2733.6,7.31625]
[1739960827343,0.8232,2734.1,2733.6,3.65809]
[1739960827525,0.8232,2734.1,2733.7,3.65796]
[1739960828075,0.19090111,2734.2,2733.8,3.65778]
[1739960828371,0.19090111,2734.2,2733.9,3.92468]
[1739960828514,0.19090111,2734.2,2734.0,0.8084]
[1739960828714,0.92,2734.1,2734.0,0.8084]
[1739960828910,0.19090111,2734.2,2734.0,0.8084]
[1739960829389,0.19090111,2734.2,2733.9,0.267]
[1739960829517,0.7926,2734.1,2733.9,0.267]
[1739960830036,4.45013,2734.1,2733.9,0.267]
[1739960830214,3.65764,2734.0,2733.4,3.65839]
[1739960830414,3.65764,2734.0,2733.7,0.267]
[1739960831036,3.65781,2733.9,2733.7,0.267]
[1739960831233,3.65791,2733.8,2733.7,0.267]
[1739960831452,4.444465,2733.8,2733.7,0.267]
[1739960831636,0.786555,2733.8,2733.7,0.267]
[1739960832972,4.444465,2733.8,2733.7,0.267]
[1739960833525,4.444465,2733.8,2733.4,0.267]
[1739960833958,0.786555,2733.8,2733.4,3.92542]
[1739960834120,0.786555,2733.8,2733.4,0.267]
[1739960834321,9.03765,2734.0,2733.4,0.267]
[1739960834521,9.03765,2734.0,2733.5,3.65819]
[1739960834817,9.03765,2734.0,2733.5,3.87497862]
[1739960836119,9.03765,2734.0,2733.5,3.65819]
[1739960836341,6.88584502,2734.0,2733.6,3.65816]
[1739960836545,6.88584502,2734.0,2733.6,4.46186]
[1739960837053,5.38,2734.0,2733.7,3.65796]
[1739960838839,4.39828111,2734.2,2733.7,3.65796]
[1739960839354,4.39828111,2734.2,2733.6,4.46186]
[1739960839355,3.6576,2734.1,2733.6,4.46186]
[1739960839864,3.6576,2734.1,2733.6,0.8037]
[1739960840049,3.65769,2734.0,2733.6,0.8037]
[1739960840236,3.65778,2733.9,2733.7,0.267]
[1739960840686,0.8192,2733.9,2733.7,0.267]
[1739960842062,0.80561911,2734.0,2733.7,3.92496]
[1739960842265,4.47048,2734.1,2733.7,0.267]
[1739960842759,0.19102276,2734.0,2733.7,0.267]
[1739960843255,0.19102276,2734.0,2733.7,3.92503]
[1739960846746,0.19102276,2734.0,2733.7,7.583]
[1739960847044,0.19102276,2734.0,2733.7,3.92497]
[1739960847991,0.19102276,2734.0,2733.9,3.65777]
[1739960849536,0.19102276,2734.0,2733.9,3.6943424]
[1739960849741,0.19102276,2734.0,2733.9,3.91100999]
[1739960850842,0.19102276,2734.0,2733.9,4.65953759]
[1739960851045,5.38,2735.0,2734.0,0.7851]
[1739960851244,3.65639,2735.0,2734.6,0.7851]
[1739960851461,0.92,2734.7,2734.6,0.267]
[1739960851666,0.1910464,2734.9,2734.6,3.92372]
[1739960851854,0.1910464,2734.9,2734.6,0.267]
[1739960853263,0.1910464,2734.9,2734.6,3.92374]
[1739960853469,0.1910464,2734.9,2734.7,3.65668]
[1739960853663,0.1910464,2734.9,2734.7,3.6931833]
[1739960853864,0.1910464,2734.9,2734.8,3.65657]
[1739960854263,0.1910464,2734.9,2734.8,4.46877]
[1739960856975,0.1910464,2734.9,2734.8,0.8122]
[1739960857165,0.1910464,2734.9,2734.8,4.46877]
[1739960857993,0.1910464,2734.9,2734.8,5.308017]
[1739960859189,0.1910464,2734.9,2734.8,1.651447]
[1739960859702,0.1910464,2734.9,2734.8,5.308017]
[1739960860202,0.1910464,2734.9,2734.8,5.34457811]
[1739960860495,0.1910464,2734.9,2734.8,5.308017]
[1739960861200,0.1910464,2734.9,2734.8,5.3445781]
[1739960861497,0.1910464,2734.9,2734.8,5.308017]
[1739960862979,0.1910464,2734.9,2734.8,6.03581199]
[1739960863711,0.1910464,2734.9,2734.8,5.308017]
[1739960864003,1.0204464,2734.9,2734.6,6.09834699]
[1739960864166,1.0204464,2734.9,2734.6,5.36]
[1739960864591,1.0204464,2734.9,2734.7,3.65663]
[1739960864803,0.1910464,2734.9,2734.7,3.65663]
[1739960864985,0.1910464,2734.9,2734.7,0.7815]
[1739960865180,0.1910464,2734.9,2734.6,5.358]
[1739960865584,0.1910464,2734.9,2734.6,9.01481]
[1739960865783,0.1910464,2734.9,2734.6,5.358]
[1739960865982,0.9531464,2734.9,2734.6,5.358]
[1739960866181,0.46095264,2734.8,2734.6,5.358]
[1739960866900,0.9531464,2734.9,2734.6,5.358]
[1739960867207,3.65665,2734.8,2734.6,5.358]
[1739960868289,4.6096864,2734.9,2734.6,5.358]
[1739960868702,4.6096864,2734.9,2734.4,3.65709]
[1739960868877,3.65659,2734.8,2734.3,0.267]
[1739960869078,4.48319964,2734.8,2734.3,0.267]
[1739960869280,4.48319964,2734.8,2734.3,3.92424]
[1739960869511,4.48319964,2734.8,2734.3,3.65724]
[1739960869679,3.65675,2734.7,2734.2,9.20345843]
[1739960869880,3.65675,2734.7,2734.2,12.86082843]
[1739960870290,4.48319964,2734.8,2734.2,12.86082843]
[1739960870611,4.48319964,2734.8,2734.2,4.63882843]
[1739960871036,4.48319964,2734.8,2734.3,3.65723]
[1739960871334,4.48319964,2734.8,2734.3,3.65717]
[1739960872037,4.48319964,2734.8,2734.3,3.92417]
[1739960872834,0.82660964,2734.8,2734.3,3.92417]
[1739960873037,3.65679,2734.7,2734.3,0.267]
[1739960873238,4.10529996,2734.6,2734.3,0.267]
[1739960873433,0.7818,2734.5,2734.3,0.267]
[1739960873614,0.97289044,2734.5,2734.2,0.71445843]
[1739960874145,4.62993044,2734.5,2734.2,0.71445843]
[1739960874338,3.65773,2734.0,2733.7,8.221]
[1739960874556,3.65781,2733.9,2733.7,8.221]
[1739960874702,8.08018,2734.0,2733.7,8.221]
[1739960874904,4.42243,2734.0,2733.7,8.221]
[1739960875104,3.6578,2733.9,2733.7,8.221]
[1739960876057,4.10005,2733.9,2733.7,8.221]
[1739960876447,3.65791,2733.8,2733.7,8.221]
[1739960877764,4.20791,2733.8,2733.7,8.221]
[1739960879136,10.35011,2733.8,2733.7,8.029847]
[1739960879338,12.06751591,2733.8,2733.7,8.029847]
[1739960880178,12.98751591,2733.8,2733.7,8.029847]
[1739960883447,2.63740591,2733.8,2733.7,8.029847]
[1739960883749,0.92,2733.8,2733.7,8.029847]
[1739960884873,4.45326,2734.0,2733.7,8.029847]
[1739960885044,3.65777,2733.9,2733.7,8.029847]
[1739960885250,3.65791,2733.8,2733.7,8.029847]
[1739960885458,4.20791,2733.8,2733.7,8.029847]
[1739960885649,5.34642791,2733.8,2733.7,8.029847]
[1739960886071,10.72642791,2733.8,2733.7,8.029847]
[1739960886281,14.48962791,2733.8,2733.7,8.029847]
[1739960886595,14.48962791,2733.8,2733.1,0.267]
[1739960886596,3.65865,2733.3,2733.1,0.267]
[1739960886760,4.20844,2733.4,2733.1,0.267]
[1739960888262,3.65871,2733.2,2733.1,0.267]
[1739960889075,4.20844,2733.4,2733.1,0.267]
[1739960889275,3.65862,2733.3,2733.1,0.267]
[1739960890077,3.65871,2733.2,2733.1,0.267]
[1739960891497,4.20844,2733.4,2733.1,0.267]
[1739960891697,3.65863,2733.3,2733.1,0.267]
[1739960893897,3.84971804,2733.3,2733.1,0.267]
[1739960895118,3.65871,2733.2,2733.1,0.267]
[1739960897322,3.65871,2733.2,2732.8,0.7824]
[1739960897485,3.65902,2733.0,2732.6,0.8084]
[1739960897692,3.65919,2732.9,2732.6,1.0754]
[1739960898111,3.65919,2732.9,2732.6,0.8084]